Workbook

Sheet Sheet1
B1: Slopes of Polar Curves
B3: This graphing utility produces the graph
B4: of any polar coordinate function
D5: r = f(Q)
B6: along with the tangent line to the curve
B7: on any interval from Q = a to Q = b.
A9: Enter the function in terms of Q: r = f(Q) = | F9: (sin(Q))^4+(cos(Q))^2
A12: Now enter the interval for Q (in radians):
B13: Starting angle a = | D13: -6.28
B14: Ending angle b = | D14: 6.28
I19: The graph of the polar function r = | N19: =F9 -> (sin(Q))^4+(cos(Q))^2
A20: Click each item below for suggestions and investigations
C21: Item 1
C22: Item 2 | I22: Now trace along the polar curve:
C23: Item 3 | I23: Q = | J23: =Sheet1!D13+K23*Sheet2!B12 -> 0.4686567164 | K23: 108
C24: Item 4 | I24: r = | J24: =LOOKUP(J23,Sheet2!C3:C204,Sheet2!D3:D204) -> 0.8376028146
I26: The slope of the tangent line at Q is m = | O26: =m -> -0.6613856764
A28: To access/download all the DIGMath Apps for Calculus
A29: Click this link: | C29: DIGMath for Calculus
A31: Created by: Sheldon P. Gordon
A32: Farmingdale State College
A33: Development of this module was supported by the
A34: NSF's Division of Undergraduate Education
A35: under grants DUE-0310123 and DUE-0442160.

Sheet Sheet2
C1: Q | D1: r = f(Q) | E1: x | F1: y | H1: Tracing point | J1: slope calculation
J2: Q0+.0001 | K2: R0+DR | L2: x = | M2: y =
C3: =Sheet1!D13 -> -6.28 | D3: =(SIN(Q))^4+(COS(Q))^2 -> 0.999989854 | E3: =D3*COS(C3) -> 0.9999847809 | F3: =D3*SIN(C3) -> 0.003185269475 | H3: 0 | I3: 0
C4: =C3+Sheet2!B$12 -> -6.217512438 | D4: 0.995711819 | E4: =D4*COS(C4) -> 0.9935653751 | F4: =D4*SIN(C4) -> 0.06534425775 | H4: =LOOKUP(Sheet1!$J$23,Sheet2!C3:C204,E3:E204) -> 0.7472889933 | I4: =LOOKUP(Sheet1!J23,Sheet2!C3:C204,F3:F204) -> 0.3783353479 | J4: =Q0+0.0001 -> 0.4687567164 | K4: =D205 -> 0.8375551077 | L4: =K4*COS(J4) -> 0.7472085953 | M4: =K4*SIN(J4) -> 0.378388522
C5: =C4+Sheet2!B$12 -> -6.155024876 | D5: 0.9839314791 | E5: 0.9758619489 | F5: 0.1257561626
C6: =C5+Sheet2!B$12 -> -6.092537313 | D6: 0.9653809888 | E6: 0.9478898778 | F6: 0.1829350519 | L6: m = | M6: =(M4-I4)/(L4-H4) -> -0.6613856764
C7: =C6+Sheet2!B$12 -> -6.030049751 | D7: 0.9412132711 | E7: 0.9112186028 | F7: 0.2357182208 | H7: Start line:
C8: =C7+Sheet2!B$12 -> -5.967562189 | D8: 0.9129303627 | E8: 0.8678344713 | F8: 0.2833816818 | H8: 0 | I8: 0 | L8: Tangent line
C9: =C8+Sheet2!B$12 -> -5.905074627 | D9: 0.8822900618 | E9: 0.8199684137 | F9: 0.3257108436 | H9: =1.2*D3*COS(C3) -> 1.199981737 | I9: =1.2*D3*SIN(C3) -> 0.00382232337 | K9: start | L9: =H4 -> 0.7472889933 | M9: =I4 -> 0.3783353479
C10: =C9+Sheet2!B$12 -> -5.842587065 | D10: 0.8511966795 | E10: 0.7699045759 | F10: 0.3630189129 | K10: end | L10: =H4+10000*(L4-H4) -> -0.05669143346 | M10: =M9+m*(L10-L9) -> 0.9100764863
C11: =C10+Sheet2!B$12 -> -5.780099502 | D11: 0.8215826865 | E11: 0.7197877474 | F11: 0.3961107288
A12: delta Q = | B12: =(Sheet1!D14-Sheet1!D13)/201 -> 0.06248756219 | C12: =C11+Sheet2!B$12 -> -5.71761194 | D12: 0.7952886085 | E12: 0.671447437 | F12: 0.426195155 | H12: End line
C13: =C12+Sheet2!B$12 -> -5.655124378 | D13: 0.7739486366 | E13: 0.626254766 | F13: 0.4547542855 | H13: 0 | I13: 0
C14: =C13+Sheet2!B$12 -> -5.592636816 | D14: 0.7588890617 | E14: 0.5850251218 | F14: 0.4833820588 | H14: =1.2*D204*COS(C204) -> 1.199981737 | I14: =1.2*D204*SIN(C204) -> -0.00382232337
C15: =C14+Sheet2!B$12 -> -5.530149254 | D15: 0.7510458445 | E15: 0.547975071 | F15: 0.5136080043
C16: =C15+Sheet2!B$12 -> -5.467661692 | D16: 0.7509064452 | E16: 0.5147367949 | F16: 0.5467234415
C17: =C16+Sheet2!B$12 -> -5.405174129 | D17: 0.7584795276 | E17: 0.4844277872 | F17: 0.5836273749
C18: =C17+Sheet2!B$12 -> -5.342686567 | D18: 0.7732944204 | E18: 0.455768279 | F18: 0.6247075608
C19: =C18+Sheet2!B$12 -> -5.280199005 | D19: 0.7944303701 | E19: 0.4272343364 | F19: 0.6697689414
C20: =C19+Sheet2!B$12 -> -5.217711443 | D20: 0.820573766 | E20: 0.3972312475 | F20: 0.7180171595
C21: =C20+Sheet2!B$12 -> -5.155223881 | D21: 0.8500997817 | E21: 0.3642699929 | F21: 0.7680996102
C22: =C21+Sheet2!B$12 -> -5.092736318 | D22: 0.8811733595 | E22: 0.3271294482 | F22: 0.8182009617
C23: =C22+Sheet2!B$12 -> -5.030248756 | D23: 0.9118632597 | E23: 0.2849885138 | F23: 0.8661848252
C24: =C23+Sheet2!B$12 -> -4.967761194 | D24: 0.9402620883 | E24: 0.2375154395 | F24: 0.9097687677
C25: =C24+Sheet2!B$12 -> -4.905273632 | D25: 0.9646048428 | E25: 0.1849059176 | F25: 0.9467165914
C26: =C25+Sheet2!B$12 -> -4.84278607 | D26: 0.9833786078 | E26: 0.1278666267 | F26: 0.975030057
C27: =C26+Sheet2!B$12 -> -4.780298507 | D27: 0.9954165836 | E27: 0.06754632421 | F27: 0.9931221823
C28: =C27+Sheet2!B$12 -> -4.717810945 | D28: 0.9999706034 | E28: 0.005421778937 | F28: 0.9999559051
C29: =C28+Sheet2!B$12 -> -4.655323383 | D29: 0.9967576326 | E29: -0.05684970293 | F29: 0.9951351112
C30: =C29+Sheet2!B$12 -> -4.592835821 | D30: 0.985977359 | E30: -0.1175961079 | F30: 0.9789394812
C31: =C30+Sheet2!B$12 -> -4.530348259 | D31: 0.9682997824 | E31: -0.1752980397 | F31: 0.9522998823
C32: =C31+Sheet2!B$12 -> -4.467860697 | D32: 0.9448235738 | E32: -0.2287405291 | F32: 0.916716617
C33: =C32+Sheet2!B$12 -> -4.405373134 | D33: 0.9170077922 | E33: -0.2771338514 | F33: 0.8741282054
C34: =C33+Sheet2!B$12 -> -4.342885572 | D34: 0.8865812036 | E34: -0.3201909307 | F34: 0.8267430064
C35: =C34+Sheet2!B$12 -> -4.28039801 | D35: 0.855434837 | E35: -0.3581532 | F35: 0.7768494356
C36: =C35+Sheet2!B$12 -> -4.217910448 | D36: 0.8255044558 | E36: -0.3917618881 | F36: 0.7266224807
C37: =C36+Sheet2!B$12 -> -4.155422886 | D37: 0.7986502495 | E37: -0.4221771164 | F37: 0.6779444692
C38: =C37+Sheet2!B$12 -> -4.092935323 | D38: 0.7765412215 | E38: -0.4508523917 | F38: 0.6322565853
C39: =C38+Sheet2!B$12 -> -4.030447761 | D39: 0.76055146 | E39: -0.4793765568 | F39: 0.5904546046
C40: =C39+Sheet2!B$12 -> -3.967960199 | D40: 0.7516747372 | E40: -0.5092985742 | F40: 0.5528380168
C41: =C40+Sheet2!B$12 -> -3.905472637 | D41: 0.7504627463 | E41: -0.5419523441 | F41: 0.5191165479
C42: =C41+Sheet2!B$12 -> -3.842985075 | D42: 0.7569908132 | E42: -0.5782989106 | F42: 0.4884725798
C43: =C42+Sheet2!B$12 -> -3.780497512 | D43: 0.7708532149 | E43: -0.618801871 | F43: 0.4596726263
C44: =C43+Sheet2!B$12 -> -3.71800995 | D44: 0.7911883958 | E44: -0.6633487164 | F44: 0.4312163703
C45: =C44+Sheet2!B$12 -> -3.655522388 | D45: 0.8167325132 | E45: -0.71122649 | F45: 0.401508254
C46: =C45+Sheet2!B$12 -> -3.593034826 | D46: 0.8458979866 | E46: -0.7611549712 | F46: 0.3690345695
C47: =C46+Sheet2!B$12 -> -3.530547264 | D47: 0.8768721658 | E47: -0.8113750758 | F47: 0.3325286175
C48: =C47+Sheet2!B$12 -> -3.468059701 | D48: 0.9077299889 | E48: -0.8597848396 | F48: 0.291107819
C49: =C48+Sheet2!B$12 -> -3.405572139 | D49: 0.9365536255 | E49: -0.904110734 | F49: 0.2443695441
C50: =C49+Sheet2!B$12 -> -3.343084577 | D50: 0.9615516709 | E50: -0.9420986034 | F50: 0.1924365797
C51: =C50+Sheet2!B$12 -> -3.280597015 | D51: 0.9811704831 | E51: -0.9717065442 | F51: 0.1359481841
C52: =C51+Sheet2!B$12 -> -3.218109453 | D52: 0.9941907422 | E52: -0.9912817577 | F52: 0.07599808346
C53: =C52+Sheet2!B$12 -> -3.155621891 | D53: 0.9998032322 | E53: -0.9997048434 | F53: 0.01402601635
C54: =C53+Sheet2!B$12 -> -3.093134328 | D54: 0.9976591336 | E54: -0.9964880066 | F54: -0.04832597234
C55: =C54+Sheet2!B$12 -> -3.030646766 | D55: 0.9878917035 | E55: -0.981817963 | F55: -0.1093778107
C56: =C55+Sheet2!B$12 -> -2.968159204 | D56: 0.9711079929 | E56: -0.9565395081 | F56: -0.1675795429
C57: =C56+Sheet2!B$12 -> -2.905671642 | D57: 0.9483511184 | E57: -0.9220812972 | F57: -0.2216662474
C58: =C57+Sheet2!B$12 -> -2.84318408 | D58: 0.9210354322 | E58: -0.8803308034 | F58: -0.2707839434
C59: =C58+Sheet2!B$12 -> -2.780696517 | D59: 0.890858619 | E59: -0.8334701858 | F59: -0.3145735659
C60: =C59+Sheet2!B$12 -> -2.718208955 | D60: 0.859696184 | E60: -0.7837884303 | F60: -0.353204226
C61: =C60+Sheet2!B$12 -> -2.655721393 | D61: 0.8294848894 | E61: -0.7334872962 | F61: -0.387351995
C62: =C61+Sheet2!B$12 -> -2.593233831 | D62: 0.8021023836 | E62: -0.6844990914 | F62: -0.4181258515
C63: =C62+Sheet2!B$12 -> -2.530746269 | D63: 0.7792505042 | E63: -0.6383330701 | F63: -0.4469476926
C64: =C63+Sheet2!B$12 -> -2.468258706 | D64: 0.7623495078 | E64: -0.5959644248 | F64: -0.4753979138
C65: =C64+Sheet2!B$12 -> -2.405771144 | D65: 0.7524498005 | E65: -0.5577756943 | F65: -0.5050415598
C66: =C65+Sheet2!B$12 -> -2.343283582 | D66: 0.7501666545 | E66: -0.5235553442 | F66: -0.5372520926
C67: =C66+Sheet2!B$12 -> -2.28079602 | D67: =(SIN(Q))^4+(COS(Q))^2 -> 0.7556419685 | E67: -0.492552778 | F67: -0.573050212
C68: =C67+Sheet2!B$12 -> -2.218308458 | D68: 0.7685354489 | E68: =D68*COS(C68) -> -0.4635836435 | F68: =D68*SIN(C68) -> -0.6129738507
C69: =C68+Sheet2!B$12 -> -2.155820896 | D69: 0.7880457587 | E69: -0.4351745228 | F69: -0.6569925818
C70: =C69+Sheet2!B$12 -> -2.093333333 | D70: 0.8129603218 | E70: -0.4057323995 | F70: -0.7044754821
C71: =C70+Sheet2!B$12 -> -2.030845771 | D71: 0.8417306844 | E71: -0.3737220361 | F71: -0.7542164045
C72: =C71+Sheet2!B$12 -> -1.968358209 | D72: 0.8725687531 | E72: -0.3378337808 | F72: -0.804515112
C73: =C72+Sheet2!B$12 -> -1.905870647 | D73: 0.903557925 | E73: -0.2971254075 | F73: -0.8533073398
C74: =C73+Sheet2!B$12 -> -1.843383085 | D74: 0.9327722065 | E74: -0.2511242759 | F74: -0.8983321141
C75: =C74+Sheet2!B$12 -> -1.780895522 | D75: 0.958395914 | E75: -0.1998800953 | F75: -0.9373210098
C76: =C75+Sheet2!B$12 -> -1.71840796 | D76: 0.9788365203 | E76: -0.1439635173 | F76: -0.96819184
C77: =C76+Sheet2!B$12 -> -1.655920398 | D77: 0.9928236306 | E77: -0.08441116113 | F77: -0.9892287488
C78: =C77+Sheet2!B$12 -> -1.593432836 | D78: 0.9994879385 | E78: -0.02262298558 | F78: -0.9992318748
C79: =C78+Sheet2!B$12 -> -1.530945274 | D79: 0.9984152535 | E79: 0.03977736895 | F79: -0.9976225636
C80: =C79+Sheet2!B$12 -> -1.468457711 | D80: 0.9896722437 | E80: 0.1011049892 | F80: -0.9844942514
C81: =C80+Sheet2!B$12 -> -1.405970149 | D81: 0.9738022918 | E81: 0.1597823242 | F81: -0.9606042434
C82: =C81+Sheet2!B$12 -> -1.343482587 | D82: 0.951791724 | E82: 0.2144969087 | F82: -0.9273071562
C83: =C82+Sheet2!B$12 -> -1.280995025 | D83: 0.9250085089 | E83: 0.2643321134 | F83: -0.8864362782
C84: =C83+Sheet2!B$12 -> -1.218507463 | D84: 0.8951172379 | E84: 0.3088575211 | F84: -0.8401439765
C85: =C84+Sheet2!B$12 -> -1.1560199 | D85: 0.8639756697 | E85: 0.3481695155 | F85: -0.7907160972
C86: =C85+Sheet2!B$12 -> -1.093532338 | D86: 0.8335192696 | E86: 0.3828775948 | F86: -0.7403776875
C87: =C86+Sheet2!B$12 -> -1.031044776 | D87: 0.8056409193 | E87: 0.4140373004 | F87: -0.6911080992
C88: =C87+Sheet2!B$12 -> -0.9685572139 | D88: 0.7820732735 | E88: 0.4430359661 | F88: -0.644482535
C89: =C88+Sheet2!B$12 -> -0.9060696517 | D89: 0.7642810741 | E89: 0.4714422145 | F89: -0.6015544851
C90: =C89+Sheet2!B$12 -> -0.8435820896 | D90: 0.7533701159 | E90: 0.5008338015 | F90: -0.5627895119
C91: =C90+Sheet2!B$12 -> -0.7810945274 | D91: 0.7500185208 | E91: 0.5326206678 | F91: -0.5280558738
C92: =C91+Sheet2!B$12 -> -0.7186069652 | D92: 0.7544345924 | E92: 0.567880681 | F92: -0.4966720108
C93: =C92+Sheet2!B$12 -> -0.656119403 | D93: 0.7663438694 | E93: 0.6072244714 | F93: -0.4675054733
C94: =C93+Sheet2!B$12 -> -0.5936318408 | D94: 0.7850061838 | E94: 0.650703078 | F94: -0.4391129842
C95: =C94+Sheet2!B$12 -> -0.5311442786 | D95: 0.8092616625 | E95: 0.6977680929 | F95: -0.4099074615
C96: =C95+Sheet2!B$12 -> -0.4686567164 | D96: 0.8376028146 | E96: 0.7472889933 | F96: -0.3783353479
C97: =C96+Sheet2!B$12 -> -0.4061691542 | D97: 0.868268222 | E97: 0.7976268749 | F97: -0.3430467516
C98: =C97+Sheet2!B$12 -> -0.343681592 | D98: 0.899352013 | E98: 0.8467583712 | F98: -0.3030417532
C99: =C98+Sheet2!B$12 -> -0.2811940299 | D99: 0.9289223133 | E99: 0.8924386817 | F99: -0.2577787103
C100: =C99+Sheet2!B$12 -> -0.2187064677 | D100: 0.9551413125 | E100: 0.9323888148 | F100: -0.2072342273
C101: =C100+Sheet2!B$12 -> -0.1562189055 | D101: 0.9763794858 | E101: 0.9644897439 | F101: -0.1519092964
C102: =C101+Sheet2!B$12 -> -0.09373134328 | D102: 0.9913168691 | E102: 0.9869654171 | F102: -0.09278146612
C103: =C102+Sheet2!B$12 -> -0.03124378109 | D103: 0.999025096 | E103: 0.9985375246 | F103: -0.03120824338
C104: =C103+Sheet2!B$12 -> 0.03124378109 | D104: 0.999025096 | E104: 0.9985375246 | F104: 0.03120824338
C105: =C104+Sheet2!B$12 -> 0.09373134328 | D105: 0.9913168691 | E105: =D105*COS(C105) -> 0.9869654171 | F105: =D105*SIN(C105) -> 0.09278146612
C106: =C105+Sheet2!B$12 -> 0.1562189055 | D106: 0.9763794858 | E106: 0.9644897439 | F106: 0.1519092964
C107: =C106+Sheet2!B$12 -> 0.2187064677 | D107: 0.9551413125 | E107: 0.9323888148 | F107: 0.2072342273
C108: =C107+Sheet2!B$12 -> 0.2811940299 | D108: 0.9289223133 | E108: 0.8924386817 | F108: 0.2577787103
C109: =C108+Sheet2!B$12 -> 0.343681592 | D109: 0.899352013 | E109: 0.8467583712 | F109: 0.3030417532
C110: =C109+Sheet2!B$12 -> 0.4061691542 | D110: 0.868268222 | E110: 0.7976268749 | F110: 0.3430467516
C111: =C110+Sheet2!B$12 -> 0.4686567164 | D111: 0.8376028146 | E111: 0.7472889933 | F111: 0.3783353479
C112: =C111+Sheet2!B$12 -> 0.5311442786 | D112: 0.8092616625 | E112: 0.6977680929 | F112: 0.4099074615
C113: =C112+Sheet2!B$12 -> 0.5936318408 | D113: 0.7850061838 | E113: 0.650703078 | F113: 0.4391129842
C114: =C113+Sheet2!B$12 -> 0.656119403 | D114: 0.7663438694 | E114: 0.6072244714 | F114: 0.4675054733
C115: =C114+Sheet2!B$12 -> 0.7186069652 | D115: 0.7544345924 | E115: 0.567880681 | F115: 0.4966720108
C116: =C115+Sheet2!B$12 -> 0.7810945274 | D116: 0.7500185208 | E116: 0.5326206678 | F116: 0.5280558738
C117: =C116+Sheet2!B$12 -> 0.8435820896 | D117: 0.7533701159 | E117: 0.5008338015 | F117: 0.5627895119
C118: =C117+Sheet2!B$12 -> 0.9060696517 | D118: 0.7642810741 | E118: 0.4714422145 | F118: 0.6015544851
C119: =C118+Sheet2!B$12 -> 0.9685572139 | D119: 0.7820732735 | E119: 0.4430359661 | F119: 0.644482535
C120: =C119+Sheet2!B$12 -> 1.031044776 | D120: 0.8056409193 | E120: 0.4140373004 | F120: 0.6911080992
C121: =C120+Sheet2!B$12 -> 1.093532338 | D121: 0.8335192696 | E121: 0.3828775948 | F121: 0.7403776875
C122: =C121+Sheet2!B$12 -> 1.1560199 | D122: 0.8639756697 | E122: 0.3481695155 | F122: 0.7907160972
C123: =C122+Sheet2!B$12 -> 1.218507463 | D123: 0.8951172379 | E123: 0.3088575211 | F123: 0.8401439765
C124: =C123+Sheet2!B$12 -> 1.280995025 | D124: 0.9250085089 | E124: 0.2643321134 | F124: 0.8864362782
C125: =C124+Sheet2!B$12 -> 1.343482587 | D125: 0.951791724 | E125: 0.2144969087 | F125: 0.9273071562
C126: =C125+Sheet2!B$12 -> 1.405970149 | D126: 0.9738022918 | E126: 0.1597823242 | F126: 0.9606042434
C127: =C126+Sheet2!B$12 -> 1.468457711 | D127: 0.9896722437 | E127: 0.1011049892 | F127: 0.9844942514
C128: =C127+Sheet2!B$12 -> 1.530945274 | D128: 0.9984152535 | E128: 0.03977736895 | F128: 0.9976225636
C129: =C128+Sheet2!B$12 -> 1.593432836 | D129: 0.9994879385 | E129: -0.02262298558 | F129: 0.9992318748
C130: =C129+Sheet2!B$12 -> 1.655920398 | D130: 0.9928236306 | E130: -0.08441116113 | F130: 0.9892287488
C131: =C130+Sheet2!B$12 -> 1.71840796 | D131: =(SIN(Q))^4+(COS(Q))^2 -> 0.9788365203 | E131: -0.1439635173 | F131: 0.96819184
C132: =C131+Sheet2!B$12 -> 1.780895522 | D132: 0.958395914 | E132: -0.1998800953 | F132: 0.9373210098
C133: =C132+Sheet2!B$12 -> 1.843383085 | D133: 0.9327722065 | E133: -0.2511242759 | F133: 0.8983321141
C134: =C133+Sheet2!B$12 -> 1.905870647 | D134: 0.903557925 | E134: -0.2971254075 | F134: 0.8533073398
C135: =C134+Sheet2!B$12 -> 1.968358209 | D135: 0.8725687531 | E135: -0.3378337808 | F135: 0.804515112
C136: =C135+Sheet2!B$12 -> 2.030845771 | D136: 0.8417306844 | E136: -0.3737220361 | F136: 0.7542164045
C137: =C136+Sheet2!B$12 -> 2.093333333 | D137: 0.8129603218 | E137: -0.4057323995 | F137: 0.7044754821
C138: =C137+Sheet2!B$12 -> 2.155820896 | D138: 0.7880457587 | E138: -0.4351745228 | F138: 0.6569925818
C139: =C138+Sheet2!B$12 -> 2.218308458 | D139: 0.7685354489 | E139: -0.4635836435 | F139: 0.6129738507
C140: =C139+Sheet2!B$12 -> 2.28079602 | D140: 0.7556419685 | E140: -0.492552778 | F140: 0.573050212
C141: =C140+Sheet2!B$12 -> 2.343283582 | D141: 0.7501666545 | E141: -0.5235553442 | F141: 0.5372520926
C142: =C141+Sheet2!B$12 -> 2.405771144 | D142: 0.7524498005 | E142: -0.5577756943 | F142: 0.5050415598
C143: =C142+Sheet2!B$12 -> 2.468258706 | D143: 0.7623495078 | E143: -0.5959644248 | F143: 0.4753979138
C144: =C143+Sheet2!B$12 -> 2.530746269 | D144: 0.7792505042 | E144: -0.6383330701 | F144: 0.4469476926
C145: =C144+Sheet2!B$12 -> 2.593233831 | D145: 0.8021023836 | E145: -0.6844990914 | F145: 0.4181258515
C146: =C145+Sheet2!B$12 -> 2.655721393 | D146: 0.8294848894 | E146: -0.7334872962 | F146: 0.387351995
C147: =C146+Sheet2!B$12 -> 2.718208955 | D147: 0.859696184 | E147: -0.7837884303 | F147: 0.353204226
C148: =C147+Sheet2!B$12 -> 2.780696517 | D148: 0.890858619 | E148: -0.8334701858 | F148: 0.3145735659
C149: =C148+Sheet2!B$12 -> 2.84318408 | D149: 0.9210354322 | E149: -0.8803308034 | F149: 0.2707839434
C150: =C149+Sheet2!B$12 -> 2.905671642 | D150: 0.9483511184 | E150: -0.9220812972 | F150: 0.2216662474
C151: =C150+Sheet2!B$12 -> 2.968159204 | D151: 0.9711079929 | E151: -0.9565395081 | F151: 0.1675795429
C152: =C151+Sheet2!B$12 -> 3.030646766 | D152: 0.9878917035 | E152: -0.981817963 | F152: 0.1093778107
C153: =C152+Sheet2!B$12 -> 3.093134328 | D153: 0.9976591336 | E153: -0.9964880066 | F153: 0.04832597234
C154: =C153+Sheet2!B$12 -> 3.155621891 | D154: 0.9998032322 | E154: -0.9997048434 | F154: -0.01402601635
C155: =C154+Sheet2!B$12 -> 3.218109453 | D155: 0.9941907422 | E155: -0.9912817577 | F155: -0.07599808346
C156: =C155+Sheet2!B$12 -> 3.280597015 | D156: 0.9811704831 | E156: -0.9717065442 | F156: -0.1359481841
C157: =C156+Sheet2!B$12 -> 3.343084577 | D157: 0.9615516709 | E157: -0.9420986034 | F157: -0.1924365797
C158: =C157+Sheet2!B$12 -> 3.405572139 | D158: 0.9365536255 | E158: -0.904110734 | F158: -0.2443695441
C159: =C158+Sheet2!B$12 -> 3.468059701 | D159: 0.9077299889 | E159: -0.8597848396 | F159: -0.291107819
C160: =C159+Sheet2!B$12 -> 3.530547264 | D160: 0.8768721658 | E160: -0.8113750758 | F160: -0.3325286175
C161: =C160+Sheet2!B$12 -> 3.593034826 | D161: 0.8458979866 | E161: -0.7611549712 | F161: -0.3690345695
C162: =C161+Sheet2!B$12 -> 3.655522388 | D162: 0.8167325132 | E162: -0.71122649 | F162: -0.401508254
C163: =C162+Sheet2!B$12 -> 3.71800995 | D163: 0.7911883958 | E163: -0.6633487164 | F163: -0.4312163703
C164: =C163+Sheet2!B$12 -> 3.780497512 | D164: 0.7708532149 | E164: -0.618801871 | F164: -0.4596726263
C165: =C164+Sheet2!B$12 -> 3.842985075 | D165: 0.7569908132 | E165: -0.5782989106 | F165: -0.4884725798
C166: =C165+Sheet2!B$12 -> 3.905472637 | D166: 0.7504627463 | E166: -0.5419523441 | F166: -0.5191165479
C167: =C166+Sheet2!B$12 -> 3.967960199 | D167: 0.7516747372 | E167: -0.5092985742 | F167: -0.5528380168
C168: =C167+Sheet2!B$12 -> 4.030447761 | D168: 0.76055146 | E168: -0.4793765568 | F168: -0.5904546046
C169: =C168+Sheet2!B$12 -> 4.092935323 | D169: 0.7765412215 | E169: =D169*COS(C169) -> -0.4508523917 | F169: =D169*SIN(C169) -> -0.6322565853
C170: =C169+Sheet2!B$12 -> 4.155422886 | D170: 0.7986502495 | E170: -0.4221771164 | F170: -0.6779444692
C171: =C170+Sheet2!B$12 -> 4.217910448 | D171: 0.8255044558 | E171: -0.3917618881 | F171: -0.7266224807
C172: =C171+Sheet2!B$12 -> 4.28039801 | D172: 0.855434837 | E172: -0.3581532 | F172: -0.7768494356
C173: =C172+Sheet2!B$12 -> 4.342885572 | D173: 0.8865812036 | E173: -0.3201909307 | F173: -0.8267430064
C174: =C173+Sheet2!B$12 -> 4.405373134 | D174: 0.9170077922 | E174: -0.2771338514 | F174: -0.8741282054
C175: =C174+Sheet2!B$12 -> 4.467860697 | D175: 0.9448235738 | E175: -0.2287405291 | F175: -0.916716617
C176: =C175+Sheet2!B$12 -> 4.530348259 | D176: 0.9682997824 | E176: -0.1752980397 | F176: -0.9522998823
C177: =C176+Sheet2!B$12 -> 4.592835821 | D177: 0.985977359 | E177: -0.1175961079 | F177: -0.9789394812
C178: =C177+Sheet2!B$12 -> 4.655323383 | D178: 0.9967576326 | E178: -0.05684970293 | F178: -0.9951351112
C179: =C178+Sheet2!B$12 -> 4.717810945 | D179: 0.9999706034 | E179: 0.005421778937 | F179: -0.9999559051
C180: =C179+Sheet2!B$12 -> 4.780298507 | D180: 0.9954165836 | E180: 0.06754632421 | F180: -0.9931221823
C181: =C180+Sheet2!B$12 -> 4.84278607 | D181: 0.9833786078 | E181: 0.1278666267 | F181: -0.975030057
C182: =C181+Sheet2!B$12 -> 4.905273632 | D182: 0.9646048428 | E182: 0.1849059176 | F182: -0.9467165914
C183: =C182+Sheet2!B$12 -> 4.967761194 | D183: 0.9402620883 | E183: 0.2375154395 | F183: -0.9097687677
C184: =C183+Sheet2!B$12 -> 5.030248756 | D184: 0.9118632597 | E184: 0.2849885138 | F184: -0.8661848252
C185: =C184+Sheet2!B$12 -> 5.092736318 | D185: 0.8811733595 | E185: 0.3271294482 | F185: -0.8182009617
C186: =C185+Sheet2!B$12 -> 5.155223881 | D186: 0.8500997817 | E186: 0.3642699929 | F186: -0.7680996102
C187: =C186+Sheet2!B$12 -> 5.217711443 | D187: 0.820573766 | E187: 0.3972312475 | F187: -0.7180171595
C188: =C187+Sheet2!B$12 -> 5.280199005 | D188: 0.7944303701 | E188: 0.4272343364 | F188: -0.6697689414
C189: =C188+Sheet2!B$12 -> 5.342686567 | D189: 0.7732944204 | E189: 0.455768279 | F189: -0.6247075608
C190: =C189+Sheet2!B$12 -> 5.405174129 | D190: 0.7584795276 | E190: 0.4844277872 | F190: -0.5836273749
C191: =C190+Sheet2!B$12 -> 5.467661692 | D191: 0.7509064452 | E191: 0.5147367949 | F191: -0.5467234415
C192: =C191+Sheet2!B$12 -> 5.530149254 | D192: 0.7510458445 | E192: 0.547975071 | F192: -0.5136080043
C193: =C192+Sheet2!B$12 -> 5.592636816 | D193: 0.7588890617 | E193: 0.5850251218 | F193: -0.4833820588
C194: =C193+Sheet2!B$12 -> 5.655124378 | D194: 0.7739486366 | E194: 0.626254766 | F194: -0.4547542855
C195: =C194+Sheet2!B$12 -> 5.71761194 | D195: =(SIN(Q))^4+(COS(Q))^2 -> 0.7952886085 | E195: 0.671447437 | F195: -0.426195155
C196: =C195+Sheet2!B$12 -> 5.780099502 | D196: 0.8215826865 | E196: 0.7197877474 | F196: -0.3961107288
C197: =C196+Sheet2!B$12 -> 5.842587065 | D197: 0.8511966795 | E197: 0.7699045759 | F197: -0.3630189129
C198: =C197+Sheet2!B$12 -> 5.905074627 | D198: 0.8822900618 | E198: 0.8199684137 | F198: -0.3257108436
C199: =C198+Sheet2!B$12 -> 5.967562189 | D199: 0.9129303627 | E199: 0.8678344713 | F199: -0.2833816818
C200: =C199+Sheet2!B$12 -> 6.030049751 | D200: 0.9412132711 | E200: 0.9112186028 | F200: -0.2357182208
... 5 more rows

Sheet Sheet3
